[Event "2nd Bassano Easter 2022"]
[Site "Bassano del Grappa"]
[Date "2022.04.16"]
[Round "5.6"]
[White "Huber, Benedikt"]
[Black "Nikolov, Momchil"]
[Result "1-0"]
[ECO "A62"]
[WhiteElo "2191"]
[BlackElo "2501"]
[Annotator "TA"]
[PlyCount "55"]
[EventDate "2022.04.14"]
[EventType "swiss"]
[EventCountry "ITA"]
[SourceTitle "playchess.com"]
[Source "ChessBase"]
[SourceQuality "1"]
[TimeControl "30/3600+30:1800+30"]

{[%evp 19,55,11,6,20,48,37,39,37,50,31,56,62,62,64,52,60,76,72,161,141,133,152,157,156,633,632,966,901,931,926,1238,1191,29988,29989,29989,29990,29993,29994]} 1. d4 {[%emt 0:00:06]} Nf6 {[%emt 0:03:59]} 2. c4 {[%emt 0:00:09]} e6 {[%emt 0:00:06]} 3. g3 {[%emt 0:00:12]} c5 {[%emt 0:00:53]} 4. d5 {[%emt 0:00:09]} exd5 {[%emt 0:00:13]} 5. cxd5 {[%emt 0:00:09]} d6 {[%emt 0:00:04]} 6. Nc3 {[%emt 0:00:08]} g6 {[%emt 0:00:08]} 7. Bg2 {[%emt 0:00:07]} Bg7 {[%emt 0:00:06]} 8. Nf3 {[%emt 0:00:07]} O-O {[%emt 0:00:08]} 9. O-O {[%emt 0:00:06]} Re8 {[%emt 0:00:11]} 10. Bf4 {[%emt 0:00:12]} Na6 {[%emt 0:03:21] Recently 10...Bf5 got a lot of attention.} 11. Re1 {[%emt 0:00:38] A62: Modern Benoni: Fianchetto Variation without early ...Nbd7.} Nc7 {[%emt 0:03:03]} 12. e4 {[%emt 0:04:22]} Bg4 {[%emt 0:03:20]} 13. h3 {[%emt 0:01:05] White is slightly better.} Bxf3 {[%emt 0:00:08]} 14. Bxf3 {[%emt 0:00:06]} Qd7 {[%emt 0:00:53] [#]} 15. e5 $146 {[%emt 0:10:55]} ({Predecessor:} 15. Kg2 b5 16. e5 dxe5 17. Bxe5 Rad8 18. Qd2 Rxe5 19. Rxe5 b4 20. Ne4 Nxe4 21. Rxe4 {½-½ (40) Ruck,R (2573)-Anka,E (2390) Hungary 2002}) 15... dxe5 {[%emt 0:00:23]} 16. Bxe5 {[%emt 0:00:08]} Rad8 {[%emt 0:13:21][%cal Rc7d5]} (16... Nfxd5 $2 17. Bxg7 Rxe1+ 18. Qxe1 $18) 17. Qb3 {[%emt 0:09:52]} b6 {[%emt 0:02:58]} 18. Rad1 {[%emt 0:03:41] &Bianco is more active.} Re7 {[%emt 0:06:22]} (18... Nfxd5 $2 19. Bxg7 Rxe1+ 20. Rxe1 $18) (18... h6 $16 {was called for.}) 19. d6 $18 {[%emt 0:21:41]} Rxe5 {[%emt 0:01:12]} 20. Rxe5 {[%emt 0:00:04]} Ne6 {[%emt 0:00:09]} 21. Be2 {[%emt 0:04:47] Bb5 is the strong threat.} Ne8 $2 {[%emt 0:08:41] [#] A mistake that costs the game.} (21... Nd4 $2 {[#]} 22. Rxd4 $1 {[%mdl 512]} cxd4 23. Re7 $1 Qxe7 24. dxe7 $18) (21... Qc8 $16 22. Nb5 a6) 22. Bb5 $1 {[%emt 0:04:13][%mdl 512]} Qb7 {[%emt 0:01:08]} (22... Qxb5 23. Nxb5) 23. Rxe6 {[%emt 0:00:26]} fxe6 {[%emt 0:00:14]} 24. Bxe8 {[%emt 0:00:14]} Rxe8 {[%emt 0:05:09]} 25. d7 {[%emt 0:00:24]} Rd8 {[%emt 0:00:12]} 26. Qxe6+ {[%emt 0:00:07] White mates.} Kf8 {[%emt 0:00:04]} 27. Ne4 {[%emt 0:00:53]} Bd4 {[%emt 0:01:34] [#]} 28. Rxd4 $1 {[%emt 0:00:31][%mdl 512] Weighted Error Value: White=0.00 (flawless) /Black=1.18} 1-0

[Event "2nd Bassano Easter 2022"]
[Site "Bassano del Grappa"]
[Date "2022.04.16"]
[Round "5.7"]
[White "Petkidis, Anthony"]
[Black "Weber, Samuel"]
[Result "1-0"]
[ECO "B48"]
[WhiteElo "2420"]
[BlackElo "2250"]
[Annotator "TA"]
[PlyCount "75"]
[EventDate "2022.04.14"]
[EventType "swiss"]
[EventCountry "ITA"]
[SourceTitle "playchess.com"]
[Source "ChessBase"]
[SourceQuality "1"]
[TimeControl "30/3600+30:1800+30"]

{[%evp 15,75,19,18,8,12,8,21,33,70,14,20,13,0,0,33,-13,34,28,78,25,67,52,83,67,42,-156,-150,-161,-143,-152,-110,-116,-116,-133,-146,-136,-25,-64,0,0,0,0,0,-89,-79,-593,485,487,708,739,751,743,730,725,538,702,682,682,670,666,568,547]} 1. e4 {[%emt 0:00:23]} c5 {[%emt 0:00:12]} 2. Nf3 {[%emt 0:00:10]} e6 {[%emt 0:00:12]} 3. d4 {[%emt 0:00:48]} cxd4 {[%emt 0:00:11]} 4. Nxd4 {[%emt 0:00:07]} Nc6 {[%emt 0:00:07]} 5. Nc3 {[%emt 0:00:11]} Qc7 {[%emt 0:00:50]} 6. Be3 {[%emt 0:00:54]} a6 {[%emt 0:01:44]} 7. Qd2 {[%emt 0:03:57] 7.g4 gains popularity.} b5 {[%emt 0:03:50]} 8. Nxc6 {[%emt 0:08:45]} Qxc6 {[%emt 0:02:15]} 9. f3 {[%emt 0:03:07] B48: Sicilian: Taimanov: 5 Nc3 Qc7 6 Be3 a6 without Be2.} Bb7 {[%emt 0:16:13]} 10. O-O-O {[%emt 0:01:33]} Nf6 {[%emt 0:02:48][%cal Bg8f6,Bf6d7,Bd7e5,Be5c4,Bc4e3][%mdl 32]} 11. g4 {[%emt 0:04:08] The position is equal.} d6 {[%emt 0:05:37]} 12. Ne2 {[%emt 0:10:07] &Bianco is more active.} (12. a3 $14) 12... Nd7 {[%emt 0:05:33]} 13. Nd4 {[%emt 0:08:11]} Qc7 {[%emt 0:00:47]} 14. Kb1 {[%emt 0:01:49]} Ne5 {[%emt 0:01:55]} 15. h4 {[%emt 0:04:11]} (15. Qe2 $14 {is more appropriate.}) 15... Be7 {[%emt 0:03:58]} (15... d5 $11) 16. g5 {[%emt 0:02:54]} Rc8 {[%emt 0:04:50]} (16... d5 $11) 17. Rg1 {[%emt 0:01:09] [#]} (17. Qh2 $16) 17... O-O $146 {[%emt 0:04:45]} ({Predecessor:} 17... d5 18. Bf4 Bd6 19. Qg2 Nc4 20. Bxd6 Qxd6 21. Bxc4 bxc4 22. h5 g6 23. Rh1 Ke7 {0-1 (63) Kacharava,N (2480)-Tutisani,N (2412) Tbilisi 2022}) 18. h5 {[%emt 0:04:43]} d5 $1 {[%emt 0:03:48]} 19. f4 {[%emt 0:03:36]} Nc4 {[%emt 0:00:58]} 20. Qf2 {[%emt 0:04:36]} (20. Bxc4 $14 {is the one way to stay ahead.} dxc4 21. Qg2) 20... Nxe3 $17 {[%emt 0:04:20]} (20... dxe4 21. Bxc4 Qxc4 22. f5 $11) 21. Qxe3 {[%emt 0:00:10]} Bc5 {[%emt 0:00:32] Hoping for ...Bxd4.} 22. c3 {[%emt 0:04:16]} e5 {[%emt 0:00:14]} 23. fxe5 {[%emt 0:00:43]} Qxe5 {[%emt 0:00:02]} 24. Bd3 {[%emt 0:01:04]} dxe4 {[%emt 0:00:06]} 25. Bc2 {[%emt 0:00:28]} f5 {[%emt 0:05:08]} (25... b4 $17 {Strongly threatening ...bxc3.} 26. g6 bxc3 27. bxc3 Bd5 28. gxf7+ Bxf7) 26. gxf6 $1 $11 {[%emt 0:00:17]} Rxf6 {[%emt 0:00:11]} (26... Qxf6 $15 27. Rg5 (27. Bxe4 $2 Rce8 $19) 27... Kh8) 27. Rg5 {[%emt 0:00:28]} Bxd4 {[%emt 0:00:47]} 28. cxd4 {[%emt 0:00:11]} Qf4 {[%emt 0:01:09]} 29. Qb3+ {[%emt 0:00:52]} (29. Bb3+ $11 {keeps the balance.} Kh8 30. Qxf4 Rxf4 31. Be6) 29... Kh8 $17 {[%emt 0:01:01]} 30. Rdg1 {[%emt 0:00:00][%mdl 8192] [#]} (30. Rc5 $17 {stays breathing.}) 30... e3 $4 {[%emt 0:00:00][%mdl 8192]} (30... Qxg5 $3 $19 {[%mdl 512] avoids the disaster.} 31. Rxg5 Rf1+ 32. Bd1 e3) 31. Qd3 $1 $18 {[%emt 0:13:10][%csl Gc2][%cal Rd3h7] White is clearly winning.} (31. R5g4 Qf1+ $3 {[%mdl 512]} 32. Bd1 e2 33. a3 Rf3) 31... Rxc2 {[%emt 0:11:44]} (31... g6 $2 32. hxg6 Be4 33. g7+ Kg8 34. Qxe4) (31... Qe4 $142 32. Qxe4 Bxe4 33. Bxe4 e2) 32. Rxg7 {[%emt 0:00:20][%csl Gg7][%cal Rd3h7]} (32. Qxc2 Be4 33. Rc1 Bxc2+ 34. Rxc2 Qe4 35. a3 Rf1+ 36. Ka2 Qxc2 37. Rc5 Qxc5 $3 {[%mdl 512]} 38. dxc5 e2 39. Kb3 e1=Q 40. a4 Rf3+ 41. Kc2 Qe4+ 42. Kd2 Rf2+ 43. Kd1 Qh1#) 32... Rc1+ {[%emt 0:00:15]} 33. Kxc1 {[%emt 0:00:17][%csl Gd3][%cal Rg7h7]} e2+ {[%emt 0:00:03][%cal Be3e2,Be2e1,Be1d3][%mdl 32] [#]} 34. Kc2 $1 {[%emt 0:02:05][%csl Gd3][%cal Rg7h7]} e1=N+ {[%emt 0:00:41] [#]} 35. Kb1 $1 {[%emt 0:03:54][%csl Gd3][%cal Rg7h7,Bc2b1,Bb1c1,Bc1d2][%mdl 32]} Qc1+ {[%emt 0:07:28]} 36. Kxc1 {[%emt 0:00:08][%csl Gd3][%cal Rg7h7]} Nxd3+ {[%emt 0:00:05]} 37. Kd2 {[%emt 0:00:05][%csl Gg1][%cal Rg7g8]} Bd5 {[%emt 0:00:16] Prevents Rg8+.} 38. Rd7 {[%emt 0:02:23] Weighted Error Value: White=0.57/Black=0.58} 1-0

[Event "2nd Bassano Easter 2022"]
[Site "Bassano del Grappa"]
[Date "2022.04.16"]
[Round "5.8"]
[White "Kolb, Tobias"]
[Black "Hess, Max"]
[Result "1/2-1/2"]
[ECO "A42"]
[WhiteElo "2316"]
[BlackElo "2395"]
[Annotator "TA"]
[PlyCount "46"]
[EventDate "2022.04.14"]
[EventType "swiss"]
[EventCountry "ITA"]
[SourceTitle "playchess.com"]
[Source "ChessBase"]
[SourceQuality "1"]
[TimeControl "30/3600+30:1800+30"]

{[%evp 24,46,0,-7,0,0,0,-13,0,-1,-7,-9,0,0,0,0,0,0,0,0,0,0,0,0,0]} 1. d4 {[%emt 0:00:02]} g6 {[%emt 0:00:11]} 2. c4 {[%emt 0:00:26]} Bg7 {[%emt 0:00:05]} 3. Nc3 {[%emt 0:00:04]} d6 {[%emt 0:00:22]} 4. e4 {[%emt 0:00:04]} e5 {[%emt 0:00:06]} 5. Nf3 {[%emt 0:01:27]} exd4 {[%emt 0:01:19]} 6. Nxd4 {[%emt 0:00:10]} Nc6 {[%emt 0:00:47]} 7. Be3 {[%emt 0:01:47]} Nge7 {[%emt 0:00:30][%cal Bg8e7,Be7f5,Bf5e3][%mdl 32]} 8. Be2 {[%emt 0:01:28]} O-O {[%emt 0:00:10]} 9. O-O {[%emt 0:00:54]} f5 {[%emt 0:01:18]} 10. exf5 {[%emt 0:03:36]} Bxd4 {[%emt 0:01:08]} 11. Bxd4 {[%emt 0:02:26]} Nxf5 {[%emt 0:00:06]} 12. Be3 {[%emt 0:01:43]} Nxe3 {[%emt 0:00:06]} 13. fxe3 {[%emt 0:00:02] The position is equal.} Be6 {[%emt 0:01:05] A42: Modern Defence: Averbakh Variation.} 14. Rxf8+ {[%emt 0:11:15]} Qxf8 {[%emt 0:00:46] [#]} 15. Bf3 $146 {[%emt 0:00:05]} ({Predecessor:} 15. b3 Qg7 16. Qd2 Ne5 17. Rf1 b6 18. Bf3 Nxf3+ 19. Rxf3 a5 20. Qd4 Re8 21. Qxg7+ Kxg7 {0-1 (56) Banovic,I (2197)-Kadric,D (2494) Novi Sad 2014}) 15... Bxc4 {[%emt 0:16:41]} 16. Bxc6 {[%emt 0:05:34]} bxc6 {[%emt 0:00:24]} 17. Qa4 {[%emt 0:01:35][%csl LRc4,LRc6]} Qf7 {[%emt 0:06:53] ...Rf8 is the strong threat.} 18. b3 {[%emt 0:02:38]} Bb5 {[%emt 0:16:18]} 19. Nxb5 {[%emt 0:01:27]} Rf8 {[%emt 0:02:41] [#] ( -> ...Qf2+)} 20. h3 $1 {[%emt 0:05:21]} cxb5 {[%emt 0:02:22]} 21. Qxa7 {[%emt 0:00:23]} Qf2+ {[%emt 0:01:41]} 22. Kh1 {[%emt 0:00:25]} Qb2 {[%emt 0:05:16]} 23. Rd1 {[%emt 0:14:47]} Qc2 {[%emt 0:01:28] An interesting draw.  Weighted Error Value: White=0.01 (flawless) /Black=0.02 (flawless)} 1/2-1/2

[Event "2nd Bassano Easter 2022"]
[Site "Bassano del Grappa"]
[Date "2022.04.16"]
[Round "5.9"]
[White "Krasteva, Beloslava"]
[Black "Petrov, Martin"]
[Result "0-1"]
[ECO "E46"]
[WhiteElo "2246"]
[BlackElo "2542"]
[Annotator "TA"]
[PlyCount "70"]
[EventDate "2022.04.14"]
[EventType "swiss"]
[EventCountry "ITA"]
[SourceTitle "playchess.com"]
[Source "ChessBase"]
[SourceQuality "1"]
[TimeControl "30/3600+30:1800+30"]

{[%evp 19,70,0,0,0,0,0,27,32,43,8,9,14,9,0,0,0,-7,-20,0,-9,-6,-17,0,-28,-9,-31,-31,-54,-52,-51,-57,-73,-38,-105,-58,-166,-169,-277,-289,-365,-365,-29970,-29972,-2305,-718,-710,-708,-29992,-29993,-29995,-29996,-29996,-1038]} 1. d4 {[%emt 0:00:09]} Nf6 {[%emt 0:00:30]} 2. c4 {[%emt 0:00:05]} e6 {[%emt 0:00:09]} 3. Nc3 {[%emt 0:00:08]} Bb4 {[%emt 0:00:06]} 4. e3 {[%emt 0:00:05]} O-O {[%emt 0:00:13]} 5. Nge2 {[%emt 0:00:11]} d5 {[%emt 0:07:25]} 6. a3 {[%emt 0:00:17]} Be7 {[%emt 0:00:03]} 7. cxd5 {[%emt 0:00:13]} exd5 {[%emt 0:00:03]} 8. Nf4 {[%emt 0:00:11]} Re8 {[%emt 0:00:03]} 9. Bd3 {[%emt 0:00:47]} Bd6 {[%emt 0:01:54]} 10. O-O {[%emt 0:06:23]} c6 {[%emt 0:00:42]} 11. Qc2 {[%emt 0:00:12] E46: Nimzo-Indian: Rubinstein: 4 e3 0-0 5 Ne2 without early Bd3.} a5 {[%emt 0:04:27] [#]} 12. Kh1 $146 {[%emt 0:04:35]} ({Predecessor:} 12. Rb1 Na6 13. Bd2 h6 14. h3 Bc7 15. Rbe1 Qd6 16. e4 dxe4 17. Nxe4 Nxe4 18. Bxe4 {0-1 (35) Javakhishvili,L (2473)-Nogerbek,K (2328) Chess.com INT 2021}) 12... Na6 {[%emt 0:04:40][%cal Bb8a6,Ba6c7,Bc7e6,Be6f8,Bf8g6][%mdl 32]} 13. f3 {[%emt 0:01:42] White has an edge.} Nc7 {[%emt 0:01:08]} 14. e4 {[%emt 0:03:14] e5 is the strong threat.} Bxf4 {[%emt 0:01:08]} 15. Bxf4 {[%emt 0:00:27]} Ne6 {[%emt 0:00:04][%csl LRd4,LRf4]} 16. Be5 {[%emt 0:08:02]} dxe4 {[%emt 0:01:46]} 17. Nxe4 {[%emt 0:01:40]} Nxe4 {[%emt 0:04:01]} 18. Bxe4 {[%emt 0:01:44] A strong pair of Bishops.} (18. fxe4 $5 {[%cal Rd4d5]} Nxd4 19. Qc5 $11) 18... Nf8 {[%emt 0:01:55]} 19. Rad1 {[%emt 0:05:45]} Be6 {[%emt 0:00:25]} 20. Qf2 {[%emt 0:02:05]} Ng6 {[%emt 0:03:45]} 21. Qg3 {[%emt 0:03:25][%cal Od4d5]} Qd7 {[%emt 0:05:36]} 22. Bc2 {[%emt 0:11:15]} a4 {[%emt 0:01:07]} 23. Bd6 {[%emt 0:09:48]} Bf5 {[%emt 0:01:37]} 24. Bxf5 {[%emt 0:00:43]} Qxf5 {[%emt 0:00:05]} 25. Rd2 {[%emt 0:00:05][%cal Od4d5] Inhibits Re2.} Re6 {[%emt 0:01:21]} 26. Rfd1 {[%emt 0:02:15]} (26. d5 $15 cxd5 27. Rfd1) 26... Rae8 {[%emt 0:01:12]} (26... h5 $17 {Strongly threatening ...h4.} 27. h4 Rd8) 27. h3 {[%emt 0:01:41] [#]} (27. d5 $15 cxd5 28. h3) 27... h5 $1 $19 {[%emt 0:00:05] Hoping for ...h4.} 28. Bb4 {[%emt 0:04:19]} (28. Bc7 $142) 28... Nf4 {[%emt 0:00:15]} 29. Bc3 {[%emt 0:01:10]} Rg6 {[%emt 0:01:29]} 30. Qh4 {[%emt 0:00:00] [#]} (30. Qh2 $19 h4 31. Bb4) 30... Nxg2 $1 {[%emt 0:00:00][%mdl 512]} 31. Rxg2 {[%emt 0:06:17] [#]} Rxg2 {[%emt 0:05:38]} (31... Re2 $142 $3 {[%mdl 512]} 32. Rg3 Qc2 33. Rxg6 fxg6) 32. Kxg2 {[%emt 0:02:35]} Re2+ {[%emt 0:00:12]} 33. Kg3 {[%emt 0:01:44]} Qg6+ {[%emt 0:00:07] Black mates.} 34. Kf4 {[%emt 0:00:09]} Qd6+ {[%emt 0:00:05]} 35. Kf5 {[%emt 0:00:28]} g6+ {[%emt 0:00:11] Weighted Error Value: White=0.79/Black=0.26 (precise)} 0-1

[Event "2nd Bassano Easter 2022"]
[Site "Bassano del Grappa"]
[Date "2022.04.16"]
[Round "5.10"]
[White "Bosiocic, Marin"]
[Black "Lohvinov, Petro"]
[Result "1-0"]
[ECO "E90"]
[WhiteElo "2522"]
[BlackElo "2230"]
[Annotator "TA"]
[PlyCount "87"]
[EventDate "2022.04.14"]
[EventType "swiss"]
[EventCountry "ITA"]
[SourceTitle "playchess.com"]
[Source "ChessBase"]
[SourceQuality "1"]
[TimeControl "30/3600+30:1800+30"]

{[%evp 14,87,41,31,44,39,35,35,48,55,57,41,41,41,41,43,50,33,40,37,62,52,62,62,99,91,86,85,68,61,75,74,120,107,136,119,129,131,135,123,137,120,133,132,132,141,186,133,170,145,245,235,285,262,479,488,745,769,822,804,772,797,759,759,881,866,2144,2061,3031,2835,2244,2229,29985,29986,29990,29991]} 1. d4 {[%emt 0:00:02]} Nf6 {[%emt 0:05:27]} 2. c4 {[%emt 0:00:09]} g6 {[%emt 0:00:30]} 3. Nc3 {[%emt 0:00:07]} Bg7 {[%emt 0:00:07]} 4. e4 {[%emt 0:00:07]} d6 {[%emt 0:00:04]} 5. h3 {[%emt 0:00:07]} O-O {[%emt 0:00:37]} 6. Be3 {[%emt 0:00:06]} c5 {[%emt 0:01:12]} 7. Nf3 {[%emt 0:00:09]} cxd4 {[%emt 0:00:31]} 8. Nxd4 {[%emt 0:00:08]} (8. Qxd4 {[#]} Ng4 $1 9. Qd2 Nxe3 10. Qxe3 Be6 $15) 8... b6 {[%emt 0:00:40] E90: King's Indian: Classical: Early deviations and 6 h3.} 9. g3 {[%emt 0:00:08]} Bb7 {[%emt 0:00:20]} 10. Bg2 {[%emt 0:00:07]} Nbd7 {[%emt 0:06:34] White is slightly better.} 11. O-O {[%emt 0:00:13]} Rc8 {[%emt 0:10:05] [#]} 12. Qe2 $146 {[%emt 0:01:26]} ({Predecessor:} 12. b3 Ba8 13. Re1 a6 14. a4 e6 15. g4 h6 16. Qd2 Nc5 17. Qc2 Qc7 18. Rad1 {1-0 (31) Anton Guijarro,D (2630)-Radjabov,T (2722) Monzon 2016}) 12... Nc5 {[%emt 0:02:19][%cal Rf6e4]} 13. Qc2 {[%emt 0:00:09]} Qd7 {[%emt 0:10:05]} 14. Rfd1 {[%emt 0:02:10]} Ne6 {[%emt 0:04:25]} 15. b3 {[%emt 0:00:55]} Nxd4 {[%emt 0:00:54]} 16. Bxd4 {[%emt 0:00:06]} Rfd8 {[%emt 0:05:07][%cal Ob6b5]} 17. a4 {[%emt 0:01:03]} Qc7 {[%emt 0:04:42]} 18. a5 {[%emt 0:01:38]} Nd7 {[%emt 0:04:23]} 19. axb6 {[%emt 0:00:37]} (19. Nb5 {feels hotter.} Qb8 20. axb6 axb6 21. Bxg7 Kxg7 22. Ra2) 19... axb6 {[%emt 0:00:37]} 20. Bxg7 {[%emt 0:00:11]} Kxg7 {[%emt 0:00:10]} 21. Ra7 {[%emt 0:03:31][%cal Oe4e5]} Qb8 {[%emt 0:01:45]} (21... Bxe4 $2 22. Qb2 Qxa7 23. Nb5+ Nf6 24. Nxa7 $18) 22. Rda1 {[%emt 0:00:22] Black is on the road to losing.} Ne5 {[%emt 0:01:50]} (22... Bc6 $142) 23. Qd2 {[%emt 0:02:46]} Nc6 {[%emt 0:04:02]} 24. R7a3 {[%emt 0:00:21] 0x0.001a398f4a34dp-1022s more active pieces.} Ne5 {[%emt 0:03:34]} 25. Qd4 {[%emt 0:00:34] [#] And now f4 would win.} Kg8 {[%emt 0:00:35]} 26. Qxb6 {[%emt 0:00:17]} Bc6 {[%emt 0:00:14]} 27. Qe3 {[%emt 0:02:07]} Qb4 {[%emt 0:00:17]} 28. Nd5 {[%emt 0:03:27]} Bxd5 {[%emt 0:01:02]} 29. exd5 {[%emt 0:00:06]} (29. cxd5 $6 Rc3 30. Qg5 f6 $11) 29... Re8 {[%emt 0:01:32]} 30. Be4 {[%emt 0:00:00]} (30. Ra7 $18) 30... Nd7 {[%emt 0:00:00]} 31. Bc2 {[%emt 0:00:52]} e5 {[%emt 0:03:16]} (31... e6 $16 {is a better defense.}) 32. Ra7 $18 {[%emt 0:02:42]} Nc5 {[%emt 0:03:03]} 33. h4 {[%emt 0:00:32][%cal Bh3h4,Bh4h5,Bh5h6][%mdl 32]} (33. Qf3 $6 Rf8 34. Qe3 Qb8 $18) 33... e4 $2 {[%emt 0:05:50]} (33... Rb8 34. Qg5 Rb7) 34. h5 {[%emt 0:00:31] aiming for h6.} ({Not} 34. Qf4 Rf8 35. Qe3 (35. Qxd6 Qc3 $11) 35... Rb8 $18) 34... Re5 {[%emt 0:02:40]} (34... Rcd8 $142 35. Kg2 Rd7) 35. h6 {[%emt 0:00:05] Strongly threatening Qf4.} ({Weaker is} 35. Qf4 Rf5 36. Qe3 (36. Qxd6 Qd2 $11) 36... Rxh5 $16) 35... g5 {[%emt 0:09:14] Against Qf4} 36. Ra8 {[%emt 0:02:11]} Qb7 {[%emt 0:00:32]} 37. Rxc8+ {[%emt 0:00:45]} Qxc8 {[%emt 0:00:05]} 38. b4 {[%emt 0:00:20]} Nd7 {[%emt 0:00:35]} 39. Ba4 {[%emt 0:00:09] Threatens to win with Bxd7.} f6 {[%emt 0:00:59]} 40. Bc6 {[%emt 0:00:25]} Nb8 {[%emt 0:00:16]} 41. Ra8 {[%emt 0:01:39][%cal Ba1a8,Ba8b8,Bb8g8][%mdl 32] Qa7 would kill now.} Kf7 {[%emt 0:03:16]} 42. Qa7+ {[%emt 0:00:44]} Kg6 {[%emt 0:00:03]} 43. Rxb8 {[%emt 0:00:11]} Qh3 {[%emt 0:00:51]} 44. Rg8+ {[%emt 0:00:28] Weighted Error Value: White=0.06 (flawless) /Black=0.44} 1-0

[Event "2nd Bassano Easter 2022"]
[Site "Bassano del Grappa"]
[Date "2022.04.16"]
[Round "6.1"]
[White "Heberla, Bartlomiej"]
[Black "Basso, Pier Luigi"]
[Result "1/2-1/2"]
[ECO "D47"]
[WhiteElo "2570"]
[BlackElo "2600"]
[Annotator "TA"]
[PlyCount "47"]
[EventDate "2022.04.14"]
[EventType "swiss"]
[EventCountry "ITA"]
[SourceTitle "playchess.com"]
[Source "ChessBase"]
[SourceQuality "1"]
[TimeControl "30/3600+30:1800+30"]

{[%evp 19,47,11,22,14,0,-2,3,9,16,16,17,12,12,14,10,6,0,0,0,0,0,0,0,0,0,0,0,-2,0,0]} 1. d4 {[%emt 0:00:02]} d5 {[%emt 0:00:38]} 2. c4 {[%emt 0:00:03]} c6 {[%emt 0:00:07]} 3. Nc3 {[%emt 0:00:21]} Nf6 {[%emt 0:00:06]} 4. Nf3 {[%emt 0:00:17]} e6 {[%emt 0:00:13]} 5. e3 {[%emt 0:00:08]} Nbd7 {[%emt 0:00:07]} 6. Bd3 {[%emt 0:00:06]} dxc4 {[%emt 0:00:05]} 7. Bxc4 {[%emt 0:00:04]} b5 {[%emt 0:00:04]} 8. Be2 {[%emt 0:00:30]} Bb7 {[%emt 0:01:27]} 9. O-O {[%emt 0:01:27]} a6 {[%emt 0:07:47]} 10. e4 {[%emt 0:01:46]} c5 {[%emt 0:00:12] The position is equal.} 11. d5 {[%emt 0:01:58] D47: Semi-Slav: Meran System.} exd5 {[%emt 0:00:07]} 12. e5 {[%emt 0:00:05]} Ne4 {[%emt 0:04:27]} 13. Nxd5 {[%emt 0:00:31]} Nxe5 {[%emt 0:01:57]} 14. Nxe5 {[%emt 0:00:07][%cal Oe2c4] [#] And now Bc4! would win.} Qxd5 {[%emt 0:01:03]} 15. Qxd5 {[%emt 0:00:03]} Bxd5 {[%emt 0:00:06]} 16. Rd1 {[%emt 0:00:07][%cal Bf1d1,Bd1d3,Bd3e3,Be3e4,Be4e5,Be5c5][%mdl 32]} Be6 {[%emt 0:00:47]} 17. a4 {[%emt 0:03:42]} Bd6 {[%emt 0:06:05]} 18. Nc6 {[%emt 0:00:44] [#] Hoping for Bf3.} Bb3 {[%emt 0:02:06][%csl LRa4,LRd1] [#]} 19. Rd3 $146 {[%emt 0:00:44]} ({Predecessor:} 19. Re1 O-O 20. axb5 axb5 21. Rxa8 Rxa8 22. Bxb5 Ra1 23. Bd2 Rxe1+ 24. Bxe1 Bf4 25. Na5 {½-½ (41) Aleksandrov,A (2596)-Kovalev,V (2538) Minsk 2016}) 19... Bc4 {[%emt 0:00:18]} 20. Re3 {[%emt 0:00:07]} Bxe2 {[%emt 0:00:12]} 21. Rxe4+ {[%emt 0:00:12]} Kd7 {[%emt 0:00:09] Strongly threatening ...Rae8.} 22. Ne5+ {[%emt 0:00:10]} Bxe5 {[%emt 0:00:23]} 23. Rxe5 {[%emt 0:00:04]} Rhe8 {[%emt 0:00:15]} 24. Rxc5 {[%emt 0:00:10] An even fight not without its subleties.  Weighted Error Value: White=0.01 (flawless) /Black=0.00 (flawless)} 1/2-1/2

[Event "2nd Bassano Easter 2022"]
[Site "Bassano del Grappa"]
[Date "2022.04.16"]
[Round "6.2"]
[White "Bernadskiy, Vitaliy"]
[Black "Huber, Benedikt"]
[Result "1-0"]
[ECO "D03"]
[WhiteElo "2601"]
[BlackElo "2191"]
[Annotator "TA"]
[PlyCount "30"]
[EventDate "2022.04.14"]
[EventType "swiss"]
[EventCountry "ITA"]
[SourceTitle "playchess.com"]
[Source "ChessBase"]
[SourceQuality "1"]
[TimeControl "30/3600+30:1800+30"]

{[%evp 9,30,18,16,14,16,20,16,17,41,18,43,20,23,0,0,0,0,0,13,5,22,14,31]} 1. d4 {[%emt 0:00:03]} Nf6 {[%emt 0:00:06]} 2. Bg5 {[%emt 0:00:05]} d5 {[%emt 0:00:16]} 3. Nd2 {[%emt 0:00:09]} c6 {[%emt 0:04:37]} 4. Ngf3 {[%emt 0:01:07]} Ne4 {[%emt 0:03:28]} 5. Bf4 {[%emt 0:01:08]} Bf5 {[%emt 0:01:33]} 6. e3 {[%emt 0:00:17] D03: 1 d4 d5 2 Nf3 Nf6 3 Bg5, including Torre Attack with early ...d5.} e6 {[%emt 0:00:22]} 7. Nxe4 {[%emt 0:01:37]} Bxe4 {[%emt 0:00:19]} 8. Bd3 {[%emt 0:01:09]} Bg6 {[%emt 0:05:02] [#]} 9. h4 $146 {[%emt 0:03:32][%cal Bh2h4,Bh4h5][%mdl 32]} ({Predecessor:} 9. Ne5 Nd7 10. Nxd7 Qxd7 11. O-O Be7 12. Qe2 Bxd3 13. Qxd3 {½-½ (13) Klaric,Z (2465)-Ivkov,B (2540) Borovo 1981}) 9... Bd6 {[%emt 0:05:09]} 10. h5 {[%emt 0:06:13]} Bxd3 {[%emt 0:01:21]} 11. cxd3 {[%emt 0:01:33]} Bxf4 {[%emt 0:07:05] The position is equal.} 12. exf4 {[%emt 0:00:03]} h6 {[%emt 0:00:05]} 13. Qd2 {[%emt 0:03:55]} Qd6 {[%emt 0:01:21]} 14. Kf1 {[%emt 0:01:55]} Nd7 {[%emt 0:00:50]} 15. Re1 {[%emt 0:00:11]} O-O-O {[%emt 0:00:50] Weighted Error Value: White=0.08 (flawless) /Black=0.09 (flawless)} 1-0